bitfinex-derivatives/quotes_BTCF0:USTF0_20250711
["timestamp","ask_amount","ask_price","bid_price","bid_amount"]
[1752242546786,1.78445166,117970.0,117960.0,0.06310009]
[1752242546986,0.042382,117960.0,117930.0,0.37675929]
[1752242547187,0.9155807,117950.0,117940.0,0.0321]
[1752242547381,0.9155807,117950.0,117940.0,0.04535711]
[1752242548185,1.40263266,117950.0,117940.0,0.04535711]
[1752242549888,1.40263266,117950.0,117940.0,0.0321]
[1752242550086,1.40263266,117950.0,117940.0,0.0627]
[1752242550686,1.76343266,117950.0,117940.0,0.0627]
[1752242550895,1.40263266,117950.0,117940.0,0.0627]
[1752242551094,1.76343266,117950.0,117940.0,0.0657]
[1752242551392,1.40263266,117950.0,117940.0,0.0657]
[1752242551788,0.254313,117950.0,117940.0,0.0657]
[1752242551994,0.876993,117950.0,117940.0,0.0657]
[1752242552191,0.2119253,117950.0,117940.0,0.5960528]
[1752242552383,0.1695384,117950.0,117940.0,0.5960528]
[1752242552582,0.1695384,117950.0,117940.0,0.4265]
[1752242552783,0.65659036,117950.0,117940.0,0.0657]
[1752242553390,1.01739036,117950.0,117940.0,0.0657]
[1752242553584,1.04869036,117950.0,117940.0,0.0657]
[1752242554187,1.10947395,117950.0,117940.0,0.003]
[1752242554397,1.07939036,117950.0,117940.0,0.003]
[1752242554792,0.71859036,117950.0,117940.0,0.003]
[1752242554987,0.5303384,117950.0,117940.0,0.0679]
[1752242555192,0.7921384,117950.0,117940.0,0.0679]
[1752242555496,0.7922184,117950.0,117940.0,0.0679]
[1752242555697,1.27927036,117950.0,117940.0,0.0679]
[1752242556597,1.64007036,117950.0,117940.0,0.0679]
[1752242557895,0.7916984,117950.0,117940.0,0.0679]
[1752242558092,0.7916984,117950.0,117940.0,0.0649]
[1752242558297,0.7915784,117950.0,117940.0,0.0649]
[1752242558499,1.63943036,117950.0,117940.0,0.033]
[1752242558696,1.70223036,117950.0,117940.0,0.033]
[1752242559097,0.65659036,117950.0,117940.0,0.033]
[1752242559400,0.7920184,117950.0,117940.0,0.033]
[1752242559601,0.7920184,117950.0,117940.0,0.0641]
[1752242559993,0.1695384,117950.0,117940.0,0.0641]
[1752242560192,0.1695384,117950.0,117940.0,0.61077905]
[1752242560392,0.2373584,117950.0,117940.0,0.61077905]
[1752242560593,0.06782,117950.0,117940.0,0.61077905]
[1752242560790,0.12716,117950.0,117940.0,1.03004706]
[1752242560997,0.2966984,117950.0,117940.0,1.03004706]
[1752242561299,0.12716,117950.0,117940.0,1.03004706]
[1752242561500,0.2976984,117950.0,117940.0,1.03004706]
[1752242561695,0.2976984,117950.0,117940.0,0.44092626]
[1752242561897,0.78475036,117950.0,117940.0,0.44092626]
[1752242562102,0.78375036,117950.0,117940.0,0.44092626]
[1752242562403,0.2966984,117950.0,117940.0,0.44292626]
[1752242562895,0.2966984,117950.0,117940.0,0.08012626]
[1752242563702,0.81425036,117950.0,117940.0,0.08012626]
[1752242563903,0.84485036,117950.0,117940.0,0.01632625]
[1752242564301,0.1695528,117940.0,117930.0,0.4249]
[1752242564502,0.65660476,117940.0,117930.0,0.4249]
[1752242564702,1.27812476,117940.0,117930.0,0.4249]
[1752242565598,1.27812476,117940.0,117930.0,0.0322]
[1752242565802,1.27812476,117940.0,117930.0,0.001]
[1752242565803,1.66942476,117940.0,117930.0,0.001]
[1752242566104,1.70002476,117940.0,117930.0,0.001]
[1752242566498,1.33922476,117940.0,117930.0,0.001]
[1752242566898,0.8515728,117940.0,117930.0,0.3618]
[1752242567099,0.8515728,117940.0,117930.0,0.0624]
[1752242567396,0.7901528,117940.0,117930.0,0.0624]
[1752242567606,0.85093639,117940.0,117930.0,0.032]
[1752242567907,1.39898835,117940.0,117930.0,0.032]
[1752242568502,0.77838835,117940.0,117930.0,0.3928]
[1752242568703,0.8511528,117940.0,117930.0,0.032]
[1752242568906,0.91193639,117940.0,117930.0,0.032]
[1752242569803,0.91193639,117940.0,117930.0,0.3928]
[1752242570395,0.91193639,117940.0,117930.0,0.032]
[1752242570601,1.39898835,117940.0,117930.0,0.001]
[1752242572008,1.39798835,117940.0,117930.0,0.001]
[1752242572502,0.23033639,117940.0,117930.0,0.3618]
[1752242572704,0.23033639,117940.0,117930.0,0.5955672]
[1752242572903,0.37990379,117950.0,117930.0,0.6803489]
[1752242573209,1.10389429,117950.0,117940.0,0.425]
[1752242573810,0.1695528,117940.0,117930.0,0.001]
[1752242574003,0.1695672,117930.0,117920.0,1.06222605]
[1752242574410,0.1695672,117930.0,117920.0,0.44306605]
[1752242575300,0.84858746,117940.0,117920.0,0.69743675]
[1752242575506,0.9157355,117940.0,117930.0,0.3917]
[1752242575706,0.9157355,117940.0,117930.0,0.4246]
[1752242576097,0.2967355,117940.0,117930.0,0.4246]
[1752242576300,0.2967355,117940.0,117930.0,0.3608]
[1752242576498,0.3597355,117940.0,117930.0,0.3608]
[1752242576808,0.90067445,117940.0,117930.0,0.3608]
[1752242577305,0.96850445,117940.0,117930.0,0.3618]
[1752242578300,0.96850445,117940.0,117930.0,0.001]
[1752242578502,1.39008804,117940.0,117930.0,0.001]
[1752242579111,0.71050615,117930.0,117920.0,0.00169599]
[1752242579411,1.45444974,117930.0,117920.0,0.00169599]
[1752242579605,0.77470615,117930.0,117920.0,0.00169599]
[1752242579911,1.39386615,117930.0,117920.0,0.00169599]
[1752242580313,1.81544974,117930.0,117920.0,0.00169599]
[1752242580712,1.19628974,117930.0,117920.0,0.00169599]
[1752242580910,1.39406615,117930.0,117920.0,0.00169599]
[1752242581108,1.39406615,117930.0,117920.0,0.36249599]
[1752242581410,0.24209762,117930.0,117920.0,0.36249599]
[1752242581610,0.1102192,117940.0,117920.0,0.90343494]
[1752242581802,0.34056389,117940.0,117930.0,0.5303672]
[1752242582001,0.29817469,117940.0,117930.0,0.5933672]
[1752242582306,0.12861359,117940.0,117930.0,1.30389015]
[1752242582511,0.06783,117940.0,117930.0,2.17345015]
[1752242584207,0.06783,117940.0,117930.0,2.17545015]
[1752242584402,0.2373828,117940.0,117930.0,2.17545015]
[1752242584613,0.29816639,117940.0,117930.0,2.17545015]
[1752242585114,0.2373828,117940.0,117930.0,2.17545015]
[1752242585306,0.29816639,117940.0,117930.0,2.17545015]
[1752242585506,0.12861359,117940.0,117930.0,2.17545015]
[1752242585903,0.06783,117940.0,117930.0,2.17545015]
[1752242586512,0.2373828,117940.0,117930.0,2.17545015]
[1752242587614,0.0607511,117940.0,117930.0,2.17545015]
[1752242588109,0.0607511,117940.0,117930.0,2.17497015]
[1752242588717,0.0607511,117940.0,117930.0,2.67497015]
[1752242589812,0.0607511,117940.0,117930.0,2.1340312]
[1752242590011,0.2303039,117940.0,117930.0,2.67497015]
[1752242590405,0.2303039,117940.0,117930.0,1.7143272]
[1752242591011,0.0607511,117940.0,117930.0,2.25526615]
[1752242591416,0.0607511,117940.0,117930.0,2.2553498]
[1752242591612,0.2303039,117940.0,117930.0,1.71441085]
[1752242591818,0.2303039,117940.0,117930.0,2.2533498]
[1752242592016,0.2303039,117940.0,117930.0,1.09445085]
[1752242592315,0.2303039,117940.0,117930.0,1.21357085]
[1752242592507,0.2625039,117940.0,117930.0,1.04400365]
[1752242592710,0.2625039,117940.0,117930.0,1.21357085]
[1752242594112,0.2303039,117940.0,117930.0,1.21357085]
[1752242594416,0.2303039,117940.0,117930.0,1.21257085]
[1752242594814,0.0607511,117940.0,117930.0,1.21257085]
[1752242595010,0.0607511,117940.0,117930.0,1.7535098]
[1752242595911,0.0607511,117940.0,117930.0,2.1730938]
[1752242597109,0.000357,117940.0,117930.0,2.1730938]
[1752242597314,0.08053,117950.0,117940.0,0.1695528]
[1752242597521,0.08053,117950.0,117940.0,1.12073821]
[1752242597724,0.08053,117950.0,117940.0,1.54030621]
[1752242598323,0.08053,117950.0,117940.0,0.99936726]
[1752242598520,0.08053,117950.0,117940.0,1.54030621]
[1752242598916,0.08053,117950.0,117940.0,1.83340621]
[1752242599825,0.08053,117950.0,117940.0,2.33340621]
[1752242600118,1e-07,117950.0,117940.0,2.70477716]
[1752242600319,0.06981,117970.0,117960.0,0.1695241]
[1752242600526,0.06981,117970.0,117960.0,2.68593386]
[1752242600723,0.06981,117970.0,117960.0,3.16907786]
[1752242600921,0.06981,117970.0,117960.0,0.97095491]
[1752242600922,0.2393197,117970.0,117960.0,0.97095491]
[1752242601225,0.1715097,117970.0,117960.0,1.52615491]
[1752242601423,0.2344097,117970.0,117960.0,1.52615491]
[1752242601924,0.1715097,117970.0,117960.0,2.06709386]
[1752242602118,0.1715097,117970.0,117960.0,2.13069386]
[1752242602419,0.0336,117970.0,117960.0,2.13069386]
[1752242602626,0.002,117970.0,117960.0,2.30023786]
[1752242603731,0.1715097,117970.0,117960.0,0.97095491]
[1752242603920,0.2331097,117970.0,117960.0,1.55911491]
[1752242604421,0.2331097,117970.0,117960.0,2.10005386]
[1752242604625,0.0636,117970.0,117960.0,2.10005386]
[1752242604831,0.002,117970.0,117960.0,2.26959786]
[1752242605031,0.002,117970.0,117960.0,2.29999786]
[1752242605330,0.1715097,117970.0,117960.0,1.58951491]
[1752242605832,0.002,117970.0,117960.0,1.58951491]
[1752242606227,0.002,117970.0,117960.0,2.30851146]
[1752242608438,0.002,117970.0,117960.0,2.30096179]
[1752242609126,0.002,117970.0,117960.0,2.36928072]
[1752242609527,0.002,117970.0,117960.0,2.86928072]
[1752242609736,0.002,117970.0,117960.0,3.11928072]
[1752242610138,0.002,117970.0,117960.0,2.86928072]
[1752242611330,0.002,117970.0,117960.0,3.16238072]
[1752242611531,0.0290515,117990.0,117980.0,0.1694954]
[1752242611738,0.002,118010.0,118000.0,0.1694666]
[1752242612033,0.002,118010.0,118000.0,3.01173939]
[1752242612240,0.002,118010.0,118000.0,3.75446634]
[1752242612643,0.002,118010.0,118000.0,3.21352739]
[1752242612941,0.002,118010.0,118000.0,3.75446634]
[1752242613541,0.002,118010.0,118000.0,3.71352739]
[1752242613740,0.002,118010.0,118000.0,3.71348739]
[1752242614237,0.002,118010.0,118000.0,3.68028739]
[1752242614444,0.2346523,118010.0,118000.0,2.31896044]
[1752242614637,0.0652,118010.0,118000.0,2.31896044]
[1752242615043,0.2346523,118010.0,118000.0,2.31896044]
[1752242615344,0.2346523,118010.0,118000.0,1.81896044]
[1752242615545,0.0652,118010.0,118000.0,1.81896044]
[1752242616139,0.2346523,118010.0,118000.0,1.81896044]
[1752242616439,0.2346523,118010.0,118000.0,2.35989939]
[1752242616644,0.2346523,118010.0,118000.0,1.81888044]
[1752242617042,0.2346523,118010.0,118000.0,0.90730044]
[1752242617244,0.2346523,118010.0,118000.0,1.52574044]
[1752242618047,0.2346523,118010.0,118000.0,2.06667939]
[1752242619249,0.0652,118010.0,118000.0,2.06667939]
[1752242620351,0.2346523,118010.0,118000.0,2.06667939]
[1752242620539,0.0652,118010.0,118000.0,2.06667939]
[1752242620947,0.2346523,118010.0,118000.0,2.06667939]
[1752242621442,0.0652,118010.0,118000.0,2.06667939]
[1752242622245,0.002,118010.0,118000.0,2.06667939]
[1752242622446,0.1714523,118010.0,118000.0,1.47923939]
[1752242622644,0.0673,118010.0,118000.0,2.06655939]
[1752242624548,0.2367523,118010.0,118000.0,0.90730044]
[1752242624848,0.2367523,118010.0,118000.0,1.52558044]
[1752242625647,0.0673,118010.0,118000.0,1.52558044]
[1752242625845,0.0673,118010.0,118000.0,2.06651939]
[1752242626051,0.0673,118010.0,118000.0,2.12911939]
[1752242626652,0.002,118010.0,118000.0,2.96315834]
[1752242626858,0.002,118010.0,118000.0,2.42221939]
[1752242627049,0.002,118010.0,118000.0,2.92221939]
[1752242629947,0.1714523,118010.0,118000.0,2.85961939]
[1752242630155,0.2344523,118010.0,118000.0,2.02558044]
[1752242630854,0.065,118010.0,118000.0,1.52558044]
[1752242631260,0.065,118010.0,118000.0,2.06651939]
[1752242631755,0.002,118010.0,118000.0,2.08927147]
[1752242632359,0.2341523,118010.0,118000.0,1.52558044]
[1752242635351,0.0647,118010.0,118000.0,1.52558044]
[1752242635552,0.0647,118010.0,118000.0,2.06651939]
[1752242636258,0.0647,118010.0,118000.0,2.08930252]
[1752242636958,0.2341523,118010.0,118000.0,2.08930252]
[1752242637164,0.2341523,118010.0,118000.0,1.54836357]
[1752242638153,0.0647,118010.0,118000.0,1.54836357]
[1752242638355,0.0647,118010.0,118000.0,2.08930252]
[1752242639155,0.0647,118010.0,118000.0,2.12190252]
[1752242639360,0.002,118010.0,118000.0,2.12190252]
[1752242639569,0.002,118010.0,118000.0,2.15240252]
[1752242640260,0.002,118010.0,118000.0,2.69334147]
[1752242640464,0.002,118010.0,118000.0,3.1785939]
[1752242640658,0.002,118010.0,118000.0,3.0091059]
[1752242641066,0.002,118010.0,118000.0,3.5091059]
[1752242641366,0.002,118010.0,118000.0,2.427228]
[1752242641569,0.002,118010.0,118000.0,2.96828799]
[1752242641764,0.002,118010.0,118000.0,2.94547828]
[1752242642468,0.002,118010.0,118000.0,3.48641723]
[1752242643175,0.002,118010.0,118000.0,3.65590523]
[1752242644575,0.002,118010.0,118000.0,3.11496628]
[1752242646063,0.002,118010.0,118000.0,3.65590523]
[1752242646365,0.002,118010.0,118000.0,2.94547828]
[1752242646758,0.002,118010.0,118000.0,2.91497828]
[1752242646969,0.0336,118010.0,118000.0,2.31868044]
[1752242647169,0.0666,118010.0,118000.0,2.31868044]
[1752242647373,0.0666,118010.0,118000.0,2.85961939]
[1752242647962,0.2360523,118010.0,118000.0,2.85961939]
[1752242648164,0.77699125,118010.0,118000.0,0.54650044]
[1752242648467,0.77699125,118010.0,118000.0,1.16422044]
[1752242648669,0.2360523,118010.0,118000.0,1.16422044]
[1752242651275,0.77699125,118010.0,118000.0,1.16422044]
[1752242651771,0.77699125,118010.0,118000.0,0.99475384]
[1752242652174,0.77699125,118010.0,118000.0,0.3608]
[1752242652175,1.19647925,118010.0,118000.0,0.3608]
[1752242653169,0.1694666,118000.0,117990.0,0.6150085]
[1752242653367,0.0657,118000.0,117990.0,0.6573786]
[1752242653564,0.0657,118000.0,117990.0,1.19831755]
[1752242654172,0.0657,118000.0,117990.0,1.22113811]
[1752242654472,0.0657,118000.0,117990.0,1.19831755]
[1752242655178,0.2351666,118000.0,117990.0,0.6160085]
[1752242655876,0.2351666,118000.0,117990.0,0.5736384]
[1752242656477,0.0657,118000.0,117990.0,0.5736384]
[1752242656669,0.2351666,118000.0,117990.0,0.5736384]
[1752242657071,0.0657,118000.0,117990.0,1.11457735]
[1752242657279,0.002,118010.0,118000.0,0.1694666]
[1752242657472,0.0661,118010.0,118000.0,2.32223393]
[1752242657864,0.2355523,118010.0,118000.0,2.32223393]
[1752242658071,0.0661,118010.0,118000.0,2.32223393]
[1752242658472,0.0661,118010.0,118000.0,2.35423393]
[1752242659179,0.2355523,118010.0,118000.0,2.35423393]
[1752242659379,0.2355523,118010.0,118000.0,1.81329498]
[1752242659380,0.0661,118010.0,118000.0,1.81329498]
[1752242659575,0.0661,118010.0,118000.0,1.83610217]
[1752242659767,0.0661,118010.0,118000.0,1.81329498]
[1752242659972,0.0661,118010.0,118000.0,1.84579498]
[1752242660171,0.0661,118010.0,118000.0,2.38673393]
[1752242660373,0.002,118010.0,118000.0,3.22077288]
[1752242660676,0.002,118010.0,118000.0,2.70263768]
[1752242661272,0.002,118010.0,118000.0,3.20263768]
[1752242662978,0.002,118010.0,118000.0,3.17983393]
[1752242664281,0.002,118010.0,118000.0,3.34932193]
[1752242664683,0.002,118010.0,118000.0,3.17983393]
[1752242664981,0.002,118010.0,118000.0,3.20262149]
[1752242668176,0.002,118010.0,118000.0,2.66168254]
[1752242668487,0.002,118010.0,118000.0,2.62917877]
[1752242668679,0.2610223,118010.0,118000.0,1.39413877]
[1752242668882,0.2610223,118010.0,118000.0,1.06903877]
[1752242669085,0.2610223,118010.0,118000.0,1.06906153]
[1752242669382,0.2610223,118010.0,118000.0,1.18618153]
[1752242669573,0.2610223,118010.0,118000.0,0.56906153]
[1752242669773,0.80196125,118010.0,118000.0,1.18614153]
[1752242669977,0.80196125,118010.0,118000.0,1.16333498]
[1752242670384,0.80196125,118010.0,118000.0,1.18614599]
[1752242670886,0.80196125,118010.0,118000.0,0.39959939]
[1752242671184,0.80196125,118010.0,118000.0,1.18610675]
[1752242672382,0.80196125,118010.0,118000.0,1.01664005]
[1752242672780,1.22144925,118010.0,118000.0,0.37678838]
[1752242673683,1.22144925,118010.0,118000.0,0.01598838]
[1752242673980,1.58224925,118010.0,118000.0,0.01598838]
[1752242674188,1.22144925,118010.0,118000.0,0.01598838]
[1752242674379,1.58224925,118010.0,118000.0,0.01598838]
[1752242675193,1.22144925,118010.0,118000.0,0.01598838]
[1752242675591,1.58224925,118010.0,118000.0,0.01598838]
[1752242675882,2.19924925,118010.0,118000.0,0.01598838]
[1752242676084,2.26003284,118010.0,118000.0,0.01598838]
[1752242676276,1.83844925,118010.0,118000.0,0.01598838]
[1752242676481,2.19924925,118010.0,118000.0,0.01598838]
[1752242676984,2.19916925,118010.0,118000.0,0.01598838]
[1752242677185,2.25995284,118010.0,118000.0,0.01598838]
[1752242677386,1.64303284,118010.0,118000.0,0.01598838]
[1752242677786,1.28223284,118010.0,118000.0,0.01598838]
[1752242677990,1.64303284,118010.0,118000.0,0.01598838]
[1752242678387,0.2610223,118010.0,118000.0,0.18545508]
[1752242678689,0.2610223,118010.0,118000.0,1.41925508]
[1752242678895,0.32180589,118010.0,118000.0,1.78005508]
[1752242679390,0.09157,118010.0,118000.0,1.78005508]
[1752242680094,0.06147,118010.0,118000.0,2.32099403]
[1752242680291,0.03067,118010.0,118000.0,2.35099403]
[1752242680498,0.15480359,118020.0,118010.0,0.1694523]
[1752242680692,0.09402,118020.0,118010.0,1.13289125]
[1752242681094,0.09402,118020.0,118010.0,1.42599125]
[1752242682297,0.09502,118020.0,118010.0,1.92599125]
[1752242684602,0.09402,118020.0,118010.0,1.92699125]
[1752242684900,0.0638155,118020.0,118010.0,2.34646325]
[1752242685104,0.02624,118020.0,118010.0,2.34646325]
[1752242685899,0.2335064,118050.0,118040.0,0.1694092]
[1752242686099,0.2335064,118050.0,118040.0,2.66494815]
[1752242686299,0.0325,118050.0,118040.0,2.66494815]
[1752242686496,0.1713948,118050.0,118040.0,2.73034815]
[1752242686801,0.002,118050.0,118040.0,2.73034815]
[1752242688001,0.004,118050.0,118040.0,2.73034815]
[1752242689105,0.004,118050.0,118040.0,2.11354815]
[1752242689404,0.004,118050.0,118040.0,1.49714815]
[1752242689405,0.002,118050.0,118040.0,1.49714815]
[1752242689702,0.1713948,118050.0,118040.0,0.8908092]
[1752242689911,0.77653375,118050.0,118040.0,1.5071692]
[1752242690110,0.2355948,118050.0,118040.0,1.5071692]
[1752242691207,0.0662,118050.0,118040.0,2.04810815]
[1752242691409,0.2355948,118050.0,118040.0,2.04810815]
[1752242691611,0.0662,118050.0,118040.0,2.04810815]
[1752242691814,0.0662,118050.0,118040.0,2.07850815]
[1752242692106,0.2355948,118050.0,118040.0,1.5071692]
[1752242692303,0.2355948,118050.0,118040.0,1.5070092]
[1752242693415,0.77653375,118050.0,118040.0,1.5069692]
[1752242693913,0.77653375,118050.0,118040.0,1.5069292]
[1752242694207,0.77653375,118050.0,118040.0,0.97692]
[1752242694411,0.77653375,118050.0,118040.0,1.1463292]
[1752242694912,0.2355948,118050.0,118040.0,1.1463292]
[1752242696708,0.2365948,118050.0,118040.0,1.1463292]
[1752242697409,0.0672,118050.0,118040.0,2.04806815]
[1752242697617,0.2365948,118050.0,118040.0,1.5071292]
[1752242698615,0.0672,118050.0,118040.0,1.5071292]
[1752242698813,0.2365948,118050.0,118040.0,1.5390292]
[1752242699415,0.0672,118050.0,118040.0,1.5390292]
[1752242699615,0.0662,118050.0,118040.0,1.5390292]
[1752242699817,0.2355949,118050.0,118040.0,1.5390292]
[1752242700018,0.2355949,118050.0,118040.0,1.5071292]
[1752242700811,0.2964725,118040.0,118030.0,0.3608]
[1752242701009,0.2964725,118040.0,118010.0,0.3608]
[1752242701010,0.0423582,118030.0,118010.0,0.3608]
[1752242701215,0.1694523,118010.0,118000.0,0.37848322]
[1752242701518,0.71039125,118010.0,118000.0,0.37848322]
[1752242701713,1.13259125,118010.0,118000.0,0.01768322]
[1752242701914,1.30207925,118010.0,118000.0,0.00169484]
[1752242702420,1.3769003,118010.0,118000.0,0.00169484]
[1752242702617,1.92645198,118010.0,118000.0,0.00169484]
[1752242703916,0.23946503,118010.0,118000.0,0.53196144]
[1752242704112,0.2308523,118010.0,118000.0,0.53196144]
[1752242704313,0.77179125,118010.0,118000.0,0.00169484]
[1752242705026,1.13259125,118010.0,118000.0,0.00169484]
[1752242705317,1.30207925,118010.0,118000.0,0.00169484]
[1752242705520,0.1694953,117980.0,117970.0,0.99271974]
[1752242705824,0.1694953,117980.0,117970.0,1.16222944]
[1752242706018,0.1996953,117980.0,117970.0,1.16222944]
[1752242706728,0.1996953,117980.0,117970.0,1.16622944]
[1752242707524,0.0302,117980.0,117970.0,0.55050944]
[1752242707721,0.0302,117980.0,117970.0,1.16618944]
[1752242708125,0.0302,117980.0,117970.0,0.55050944]
[1752242708126,0.1996953,117980.0,117970.0,0.55050944]
[1752242708526,0.74063425,117980.0,117970.0,1.16610944]
[1752242708827,0.2311953,117980.0,117970.0,1.16610944]
[1752242709131,0.00442,117990.0,117980.0,0.1694954]
[1752242709330,0.00442,117990.0,117980.0,0.5302954]
[1752242709331,0.06852,117990.0,117980.0,0.5302954]
[1752242709531,0.06852,117990.0,117980.0,1.07123435]
[1752242709729,0.06852,117990.0,117980.0,1.10433435]
[1752242710330,0.238001,117990.0,117980.0,1.10433435]
[1752242710528,0.238001,117990.0,117980.0,0.5322954]
[1752242710730,0.06852,117990.0,117980.0,0.5322954]
[1752242711034,0.238001,117990.0,117980.0,0.5322954]
[1752242711936,0.06852,117990.0,117980.0,0.5322954]
[1752242712136,0.00442,117990.0,117980.0,1.07323435]
[1752242712324,0.00442,117990.0,117980.0,1.10503435]
[1752242712838,0.00442,117990.0,117980.0,0.5640954]
[1752242713034,0.00442,117990.0,117980.0,1.10503435]
[1752242713430,0.00442,117990.0,117980.0,0.5640954]
[1752242713630,0.00442,117990.0,117980.0,1.1796154]
[1752242713631,0.173901,117990.0,117980.0,1.1796154]
[1752242713831,0.03482,117990.0,117980.0,1.1796154]
[1752242714335,0.204301,117990.0,117980.0,1.1796154]
[1752242714834,0.00442,117990.0,117980.0,1.1796154]
[1752242715036,0.00442,117990.0,117980.0,1.72055435]
[1752242715937,0.00442,117990.0,117980.0,1.72051435]
[1752242716135,0.173901,117990.0,117980.0,1.1795754]
[1752242716334,0.00442,117990.0,117980.0,1.1795754]
[1752242716534,0.00442,117990.0,117980.0,1.75241435]
[1752242717238,0.173901,117990.0,117980.0,1.1795754]
[1752242717435,0.71483995,117990.0,117980.0,0.5322954]
[1752242717733,0.74683995,117990.0,117980.0,0.002]
[1752242718242,2.14259195,117990.0,117980.0,0.002]
[1752242719738,0.1695097,117970.0,117960.0,0.62546046]
[1752242720140,0.2014097,117970.0,117960.0,0.62546046]
[1752242721040,0.74234865,117970.0,117960.0,0.37317656]
[1752242721235,0.74234865,117970.0,117960.0,0.54270066]
[1752242721635,0.77294865,117970.0,117960.0,0.37317656]
[1752242721830,0.77294865,117970.0,117960.0,0.36449542]
[1752242722035,0.77294865,117970.0,117960.0,0.00369542]
[1752242722644,1.13374865,117970.0,117960.0,0.00369542]
[1752242722931,1.55329265,117970.0,117960.0,0.00369542]
[1752242723129,2.17706523,117970.0,117960.0,0.00169542]
[1752242723535,1.56170523,117970.0,117960.0,0.00169542]
[1752242723736,2.17702523,117970.0,117960.0,0.00169542]
[1752242724139,0.60122228,117970.0,117960.0,0.00169542]
[1752242724333,0.60122228,117970.0,117960.0,0.17121952]
[1752242724533,0.2320097,117970.0,117960.0,0.17121952]
[1752242724740,0.2320097,117970.0,117960.0,0.53201952]
[1752242724939,0.0625,117970.0,117960.0,0.53201952]
[1752242725137,0.2320097,117970.0,117960.0,0.56491952]
[1752242725338,0.2320097,117970.0,117960.0,0.53201952]
[1752242726340,0.77294865,117970.0,117960.0,0.53201952]
[1752242727239,0.77294865,117970.0,117960.0,0.36249542]
[1752242728040,1.55773265,117970.0,117960.0,0.00169542]
[1752242728341,1.91853265,117970.0,117960.0,0.00169542]
[1752242729944,1.30329265,117970.0,117960.0,0.00169542]
[1752242730447,1.91845265,117970.0,117960.0,0.00169542]
[1752242731038,1.30329265,117970.0,117960.0,0.00169542]
[1752242731347,1.91845265,117970.0,117960.0,0.00169542]
[1752242733842,2.16845265,117970.0,117960.0,2e-08]
[1752242734440,1.55329265,117970.0,117960.0,2e-08]
[1752242734647,1.91833265,117970.0,117960.0,2e-08]
[1752242734842,0.94249265,117970.0,117960.0,2e-08]
[1752242735155,0.2320097,117970.0,117960.0,2e-08]
[1752242735449,0.2320097,117970.0,117960.0,0.36080002]
[1752242735644,0.1695097,117970.0,117960.0,0.53032412]
[1752242735844,0.002,117970.0,117960.0,1.74790307]
[1752242736556,0.2118749,117980.0,117970.0,0.1695097]
[1752242736744,0.2118749,117980.0,117970.0,0.5927097]
[1752242736944,0.75281385,117980.0,117970.0,0.3928]
[1752242737144,0.169501,117980.0,117970.0,0.5623097]
[1752242737347,0.1271171,117990.0,117980.0,0.0423708]
[1752242737348,0.06059203,117990.0,117980.0,0.0423708]
[1752242737548,0.23007303,117990.0,117980.0,1.21836715]
[1752242737851,0.23007303,117990.0,117980.0,2.44828715]
[1752242738041,0.23007303,117990.0,117980.0,1.9073482]
[1752242738251,0.06059203,117990.0,117980.0,1.9073482]
[1752242738445,0.36160643,118000.0,117990.0,0.169481]
[1752242738642,0.06502203,118000.0,117990.0,0.592681]
[1752242738852,0.00443,118000.0,117990.0,1.13361995]
[1752242739048,0.00443,118000.0,117990.0,1.1495984]
[1752242739251,0.06502203,118000.0,117990.0,1.1495984]
[1752242739449,0.00443,118000.0,117990.0,1.1495984]
[1752242739748,0.00443,118000.0,117990.0,1.5690944]
[1752242739955,0.06979,118010.0,118000.0,0.1694666]
[1752242740253,0.06979,118010.0,118000.0,2.33252555]
[1752242740950,0.2392422,118010.0,118000.0,2.33252555]
[1752242741557,0.2392422,118010.0,118000.0,1.7915866]
[1752242741852,0.2392422,118010.0,118000.0,2.33252555]
[1752242742048,0.06979,118010.0,118000.0,2.33252555]
[1752242742350,0.2392422,118010.0,118000.0,2.33252555]
[1752242742753,0.06979,118010.0,118000.0,2.33252555]
[1752242743253,0.13038203,118010.0,118000.0,2.36412555]
[1752242743748,0.06979,118010.0,118000.0,3.3245525]
[1752242744049,0.06979,118010.0,118000.0,2.78361355]
[1752242744852,0.06979,118010.0,118000.0,3.28361355]
[1752242745554,0.06979,118010.0,118000.0,2.66841355]
[1752242745958,0.2392423,118010.0,118000.0,1.0934666]
[1752242746151,0.06979,118010.0,118000.0,1.7079866]
[1752242746347,0.06979,118010.0,118000.0,1.2079866]
[1752242746761,0.06979,118010.0,118000.0,1.74892555]
[1752242747052,0.06979,118010.0,118000.0,1.13440555]
[1752242747260,0.06979,118010.0,118000.0,1.74888555]
[1752242748256,0.06979,118010.0,118000.0,1.91837355]
[1752242748459,0.06979,118010.0,118000.0,2.41837355]
[1752242751159,0.06979,118010.0,118000.0,1.0934666]
[1752242751460,0.78018125,118010.0,118000.0,1.0934666]
[1752242751652,0.64202895,118010.0,118000.0,1.6761066]
[1752242751858,0.2705423,118010.0,118000.0,1.6761066]
[1752242752056,0.2705423,118010.0,118000.0,1.7073066]
[1752242752057,0.10109,118010.0,118000.0,1.7073066]
[1752242752260,0.06979,118010.0,118000.0,2.24824555]
[1752242752461,0.2392423,118010.0,118000.0,1.7073066]
[1752242752657,0.06979,118010.0,118000.0,1.2073066]
[1752242753063,0.06979,118010.0,118000.0,1.74824555]
[1752242753859,0.06979,118010.0,118000.0,1.2073066]
[1752242754160,0.06979,118010.0,118000.0,1.74824555]
[1752242755664,0.06979,118010.0,118000.0,0.5930666]
[1752242755860,0.06979,118010.0,118000.0,1.1759066]
[1752242755861,0.2392423,118010.0,118000.0,1.1759066]
[1752242756162,0.13319,118010.0,118000.0,1.1443066]
[1752242756361,0.06979,118010.0,118000.0,1.68524555]
[1752242756555,0.06979,118010.0,118000.0,1.74894555]
[1752242757356,0.06979,118010.0,118000.0,2.2898845]
[1752242757765,0.06979,118010.0,118000.0,2.24894555]
[1752242758267,0.0437724,118010.0,118000.0,3.2093725]
[1752242758564,0.2561101,118050.0,118000.0,3.2093725]
[1752242758565,0.0335,118050.0,118040.0,0.1694092]
[1752242758766,0.0335,118050.0,118040.0,2.65982815]
[1752242758963,0.0335,118050.0,118040.0,2.69272815]
[1752242759164,0.002,118050.0,118040.0,2.69272815]
[1752242760164,0.004,118050.0,118040.0,2.69272815]
[1752242761066,0.004,118050.0,118040.0,2.70103232]
[1752242761266,0.004,118050.0,118040.0,2.87045632]
[1752242761565,0.004,118050.0,118040.0,3.37045632]
[1752242761865,0.004,118050.0,118040.0,3.38605632]
[1752242762073,1e-07,118050.0,118040.0,3.63605632]